fUST/lending_fUST_20250226
["ID","MTS","AMOUNT","RATE_DAILY","PERIOD"]
[354500616,1740541835663,-500.0,0.00038356,2]
[354500617,1740541835672,-1002.86407051,0.00038356,2]
[354500618,1740541835681,-500.0,0.00038356,2]
[354500619,1740541835691,-8525.94,0.00038356,2]
[354500620,1740541835700,-500.0,0.00038356,2]
[354500621,1740541835710,-167654.2,0.00038356,2]
[354500622,1740541835723,-2404.5,0.00038356,2]
[354500623,1740541835733,-500.0,0.00038356,2]
[354500624,1740541835742,-500.0,0.00038356,2]
[354500625,1740541835751,-505.47434019,0.00038356,2]
[354500626,1740541835762,-986.53,0.00038356,2]
[354500627,1740541835771,-18440.98,0.00038356,2]
[354500628,1740541835780,-527.39,0.00038356,2]
[354500629,1740541835790,-626.84,0.00038356,2]
[354500630,1740541835801,-500.0,0.00038356,2]
[354500631,1740541835812,-2187.34,0.00038356,2]
[354500632,1740541835821,-484.7159725,0.00038356,2]
[354500633,1740541835832,-2420.23,0.00038356,2]
[354500634,1740541835841,-3527.91,0.00038356,2]
[354500635,1740541835850,-500.0,0.00038356,2]
[354500636,1740541835860,-500.0,0.00038356,2]
[354500637,1740541835870,-502.0590398,0.00038356,2]
[354500638,1740541835879,-635.5,0.00038356,2]
[354500639,1740541835888,-1252.18,0.00038356,2]
[354500640,1740541835898,-500.0,0.00038356,2]
[354500641,1740541835908,-1909.8,0.00038356,2]
[354500642,1740541835918,-508.99268949,0.00038356,2]
[354500643,1740541835928,-500.0,0.00038356,2]
[354500644,1740541835937,-500.0,0.00038356,2]
[354500645,1740541835947,-500.0,0.00038356,2]
[354500646,1740541835956,-1960.26,0.00038356,2]
[354500647,1740541835965,-500.0,0.00038356,2]
[354500648,1740541835975,-1019.95,0.00038356,2]
[354500649,1740541835984,-3063.72,0.00038356,2]
[354500650,1740541835994,-500.0,0.00038356,2]
[354500651,1740541836003,-1225.56,0.00038356,2]
[354500652,1740541836013,-500.0,0.00038356,2]
[354500653,1740541836023,-775.34,0.00038356,2]
[354500654,1740541836033,-500.0,0.00038356,2]
[354500655,1740541836042,-500.0,0.00038356,2]
[354500656,1740541836052,-502.97080208,0.00038356,2]
[354500657,1740541836061,-500.0,0.00038356,2]
[354500658,1740541836071,-500.0,0.00038356,2]
[354500659,1740541836083,-500.0,0.00038356,2]
[354500660,1740541836093,-500.0,0.00038356,2]
[354500661,1740541836103,-500.0,0.00038356,2]
[354500662,1740541836114,-500.0,0.00038356,2]
[354500663,1740541836124,-500.0,0.00038356,2]
[354500664,1740541836133,-1904.32,0.00038356,2]
[354500665,1740541836143,-500.0,0.00038356,2]
[354500666,1740541836153,-500.0,0.00038356,2]
[354500667,1740541836163,-500.0,0.00038356,2]
[354500668,1740541836173,-500.0,0.00038356,2]
[354500669,1740541836183,-500.0,0.00038356,2]
[354500670,1740541836193,-500.0,0.00038356,2]
[354500671,1740541836203,-500.0,0.00038356,2]
[354500672,1740541836212,-500.0,0.00038356,2]
[354500673,1740541836222,-500.0,0.00038356,2]
[354500674,1740541836231,-500.0,0.00038356,2]
[354500675,1740541836240,-500.0,0.00038356,2]
[354500676,1740541836250,-500.0,0.00038356,2]
[354500677,1740541836259,-573.2,0.00038356,2]
[354500678,1740541836269,-500.0,0.00038356,2]
[354500679,1740541836279,-500.0,0.00038356,2]
[354500680,1740541836288,-295.60099705,0.00038356,2]
[354500681,1740541836298,-785.27,0.00038356,2]
[354500682,1740541836307,-500.0,0.00038356,2]
[354500683,1740541836317,-1033.75,0.00038356,2]
[354500684,1740541836327,-637.72,0.00038356,2]
[354500685,1740541836339,-616.19,0.00038356,2]
[354500686,1740541836348,-2927.49,0.00038356,2]
[354500687,1740541836358,-500.0,0.00038356,2]
[354500688,1740541836368,-14460.9,0.00038356,2]
[354500689,1740541836377,-1115.55,0.00038356,2]
[354500690,1740541836386,-1462.25,0.00038356,2]
[354500691,1740541836395,-571.33,0.00038356,2]
[354500692,1740541836405,-500.0,0.00038356,2]
[354500693,1740541836414,-500.0,0.00038356,2]
[354500694,1740541836425,-500.0,0.00038356,2]
[354500695,1740541836434,-500.0,0.00038356,2]
[354500696,1740541836444,-279.88225138,0.00038356,2]
[354500697,1740541836453,-500.0,0.00038356,2]
[354500698,1740541836462,-500.0,0.00038356,2]
[354500699,1740541836471,-500.0,0.00038356,2]
[354500700,1740541836481,-500.0,0.00038356,2]
[354500701,1740541836490,-500.0,0.00038356,2]
[354500702,1740541836499,-639.93,0.00038356,2]
[354500703,1740541836509,-500.0,0.00038356,2]
[354500704,1740541836518,-500.0,0.00038356,2]
[354500705,1740541836528,-585.68244115,0.00038356,2]
[354500706,1740541836538,-603.95185659,0.00038356,2]
[354500707,1740541836547,-743.61,0.00038356,2]
[354500708,1740541836557,-500.0,0.00038356,2]
[354500709,1740541836566,-500.0,0.00038356,2]
[354500710,1740541836575,-500.0,0.00038356,2]
[354500711,1740541836586,-500.0,0.00038356,2]
[354500712,1740541836595,-578.75,0.00038356,2]
[354500713,1740541836604,-5124.98,0.00038356,2]
[354500714,1740541836614,-2827.42,0.00038356,2]
[354500715,1740541836624,-500.0,0.00038356,2]
[354500716,1740541836633,-500.0,0.00038356,2]
[354500717,1740541836643,-500.0,0.00038356,2]
[354500718,1740541836652,-500.0,0.00038356,2]
[354500719,1740541836662,-500.0,0.00038356,2]
[354500720,1740541836671,-500.0,0.00038356,2]
[354500721,1740541836681,-500.0,0.00038356,2]
[354500722,1740541836690,-1239.32,0.00038356,2]
[354500723,1740541836699,-500.0,0.00038356,2]
[354500724,1740541836709,-500.0,0.00038356,2]
[354500725,1740541836719,-26314.25,0.00038356,2]
[354500726,1740541836733,-11193.35,0.00038356,2]
[354500727,1740541836743,-500.0,0.00038356,2]
[354500728,1740541836752,-500.0,0.00038356,2]
[354500729,1740541836762,-4997.59,0.00038356,2]
[354500730,1740541836771,-500.0,0.00038356,2]
[354500731,1740541836781,-503.14114913,0.00038356,2]
[354500732,1740541836790,-333.12353233,0.00038356,2]
[354500733,1740541836802,-500.0,0.00038356,2]
[354500734,1740541836812,-1060.56,0.00038356,2]
[354500735,1740541836821,-500.0,0.00038356,2]
[354500736,1740541836831,-500.0,0.00038356,2]
[354500737,1740541836840,-500.0,0.00038356,2]
[354500738,1740541836850,-500.0,0.00038356,2]
[354500739,1740541836859,-941.31,0.00038356,2]
[354500740,1740541836868,-500.0,0.00038356,2]
[354500741,1740541836877,-500.0,0.00038356,2]
[354500742,1740541836886,-17506.28,0.00038356,2]
[354500743,1740541836896,-2390.39,0.00038356,2]
[354500744,1740541836905,-500.0,0.00038356,2]
[354500745,1740541836915,-3004.03,0.00038356,2]
[354500746,1740541836924,-500.0,0.00038356,2]
[354500747,1740541836934,-1782.91,0.00038356,2]
[354500748,1740541836943,-500.0,0.00038356,2]
[354500749,1740541836952,-500.0,0.00038356,2]
[354500750,1740541836961,-1794.47,0.00038356,2]
[354500751,1740541836970,-623.66,0.00038356,2]
[354500752,1740541836979,-1392.27,0.00038356,2]
[354500753,1740541836989,-506.98999627,0.00038356,2]
[354500754,1740541836998,-575.68,0.00038356,2]
[354500755,1740541837007,-534.28,0.00038356,2]
[354500756,1740541837016,-373.28836876,0.00038356,2]
[354500757,1740541837026,-5602.35,0.00038356,2]
[354500758,1740541837035,-700.69,0.00038356,2]
[354500759,1740541837045,-2753.33,0.00038356,2]
[354500760,1740541837054,-1440.51,0.00038356,2]
[354500761,1740541837064,-785.44,0.00038356,2]
[354500762,1740541837073,-552.46,0.00038356,2]
[354500763,1740541837083,-500.0,0.00038356,2]
[354500764,1740541837092,-465.53370872,0.00038356,2]
[354500765,1740541837102,-505.79149206,0.00038356,2]
[354500766,1740541837111,-500.0,0.00038356,2]
[354500767,1740541837121,-734.87,0.00038356,2]
[354500768,1740541837131,-3053.22,0.00038356,2]
[354500769,1740541837140,-500.0,0.00038356,2]
[354500770,1740541837150,-1081.35,0.00038356,2]
[354500771,1740541837159,-500.0,0.00038356,2]
[354500772,1740541837169,-3762.21,0.00038356,2]
[354500773,1740541837178,-500.0,0.00038356,2]
[354500774,1740541837188,-13178.26,0.00038356,2]
[354500775,1740541837197,-500.0,0.00038356,2]
[354500776,1740541837208,-843.19,0.00038356,2]
[354500777,1740541837217,-1787.91,0.00038356,2]
[354500778,1740541837276,-500.0,0.00038356,2]
[354500779,1740541837286,-500.0,0.00038356,2]
[354500780,1740541837295,-1918.49,0.00038356,2]
[354500781,1740541837305,-834.45,0.00038356,2]
[354500782,1740541837314,-5245.51,0.00038356,2]
[354500783,1740541837323,-500.0,0.00038356,2]
[354500784,1740541837332,-589.86299557,0.00038356,2]
[354500785,1740541837341,-500.49203287,0.00038356,2]
[354500786,1740541837350,-500.0,0.00038356,2]
[354500787,1740541837359,-500.0,0.00038356,2]
[354500788,1740541837369,-1168.34,0.00038356,2]
[354500789,1740541837378,-8391.51,0.00038356,2]
[354500790,1740541837387,-500.0,0.00038356,2]
[354500791,1740541837396,-500.0,0.00038356,2]
[354500792,1740541837405,-1193.47,0.00038356,2]
[354500793,1740541837415,-9125.91,0.00038356,2]
[354500794,1740541837424,-300.0,0.00038356,120]
[354500795,1740541837432,-500.0,0.00038356,2]
[354500796,1740541837441,-857.27,0.00038356,2]
[354500797,1740541837451,-500.0,0.00038356,2]
[354500798,1740541837460,-500.0,0.00038356,2]
[354500799,1740541837469,-500.0,0.00038356,2]
[354500800,1740541837479,-500.0,0.00038356,2]
[354500801,1740541837489,-5628.63,0.00038356,2]
[354500802,1740541837498,-500.0,0.00038373,5]
[354500803,1740541837507,-500.0,0.00038373,5]
[354500804,1740541837517,-526.40789244,0.00038373,5]
[354500805,1740541837526,-21651.68,0.000384,30]
[354500806,1740541837535,-166.52968197,0.0003853,2]
[354500807,1740541837544,-151.0,0.000386,15]
[354500808,1740541837554,-151.0,0.000386,17]
[354500809,1740541837564,-1000.0,0.000386,90]
[354500810,1740541837573,-1000.0,0.000386,60]
[354500811,1740541837582,-250.64811696,0.0003863,2]
[354500812,1740541837591,-631.2019315,0.0003863,2]
[354500813,1740541837600,-501.18781957,0.0003863,2]
[354500814,1740541837609,-539.65979783,0.0003863,2]
[354500815,1740541837619,-500.0,0.0003863,2]
[354500816,1740541837629,-500.0,0.0003863,2]
[354500817,1740541837638,-500.0,0.0003863,2]
[354500818,1740541837647,-500.0,0.0003863,2]
[354500819,1740541837656,-500.0,0.0003863,2]
[354500820,1740541837666,-500.0,0.0003863,2]
[354500821,1740541837675,-500.0,0.0003863,2]
[354500822,1740541837684,-548.16,0.0003863,2]
[354500823,1740541837693,-506.05003401,0.0003863,2]
[354500824,1740541837703,-510.60960834,0.0003863,2]
[354500825,1740541837712,-500.0,0.0003863,2]
[354500826,1740541837726,-500.0,0.0003863,2]
[354500827,1740541837735,-611.99,0.0003863,2]
[354500828,1740541837745,-500.0,0.0003863,2]
[354500829,1740541837755,-890.56,0.0003863,2]
[354500830,1740541837766,-500.0,0.0003863,2]
[354500831,1740541837776,-500.0,0.0003863,2]
[354500832,1740541837786,-500.0,0.0003863,2]
[354500833,1740541837796,-500.0,0.0003863,2]
[354500834,1740541837805,-500.0,0.0003863,2]
[354500835,1740541837815,-990.32,0.0003863,2]
[354500836,1740541837824,-500.0,0.0003863,2]
[354500837,1740541837835,-500.0,0.0003863,2]
[354500838,1740541837844,-500.0,0.0003863,2]
[354500839,1740541837854,-789.78,0.0003863,2]
[354500840,1740541837863,-500.0,0.0003863,2]
[354500841,1740541837872,-1500.75,0.0003863,2]
[354500842,1740541837881,-500.0,0.0003863,2]
[354500843,1740541837891,-500.0,0.0003863,2]
[354500844,1740541837901,-500.0,0.0003863,2]
[354500845,1740541837911,-500.0,0.0003863,2]
[354500846,1740541837921,-500.0,0.0003863,2]
[354500847,1740541837931,-524.67,0.0003863,2]
[354500848,1740541837940,-500.0,0.0003863,2]
[354500849,1740541837950,-504.81217776,0.0003863,2]
[354500850,1740541837960,-500.0,0.0003863,2]
[354500851,1740541837970,-500.0,0.0003863,2]
[354500852,1740541837979,-500.0,0.0003863,2]
[354500853,1740541837989,-500.0,0.0003863,2]
[354500854,1740541837998,-503.68719524,0.0003863,2]
[354500855,1740541838007,-500.0,0.0003863,2]
[354500856,1740541838016,-645.84,0.0003863,2]
[354500857,1740541838025,-667.29,0.0003863,2]
[354500858,1740541838035,-500.0,0.0003863,2]
[354500859,1740541838044,-500.0,0.0003863,2]
[354500860,1740541838054,-500.0,0.0003863,2]
[354500861,1740541838063,-500.0,0.0003863,2]
[354500862,1740541838073,-697.46,0.0003863,2]
[354500863,1740541838082,-500.0,0.0003863,2]
[354500864,1740541838092,-504.52072318,0.0003863,2]
[354500865,1740541838103,-500.0,0.0003863,2]
[354500866,1740541838113,-551.75,0.0003863,2]
[354500867,1740541838123,-611.81,0.0003863,2]
[354500868,1740541838132,-500.0,0.0003863,2]
[354500869,1740541838142,-500.0,0.0003863,2]
[354500870,1740541838151,-500.0,0.0003863,2]
[354500871,1740541838160,-500.0,0.0003863,2]
[354500872,1740541838169,-500.0,0.0003863,2]
[354500873,1740541838178,-500.0,0.0003863,2]
[354500874,1740541838187,-643.60683448,0.0003863,2]
[354500875,1740541838196,-500.0,0.0003863,2]
[354500876,1740541838206,-500.0,0.0003863,2]
[354500877,1740541838215,-500.0,0.0003863,2]
[354500878,1740541838225,-500.0,0.0003863,2]
[354500879,1740541838235,-500.0,0.0003863,2]
[354500880,1740541838244,-618.03,0.0003863,2]
[354500881,1740541838254,-500.0,0.0003863,2]
[354500882,1740541838263,-500.0,0.0003863,2]
[354500883,1740541838272,-500.0,0.0003863,2]
[354500884,1740541838281,-708.3,0.0003863,2]
[354500885,1740541838290,-500.0,0.0003863,2]
[354500886,1740541838299,-500.0,0.0003863,2]
[354500887,1740541838308,-500.0,0.0003863,2]
[354500888,1740541838317,-504.69172029,0.0003863,2]
[354500889,1740541838326,-1145.36,0.0003863,2]
[354500890,1740541838337,-1093.44,0.0003863,2]
[354500891,1740541838346,-500.0,0.0003863,2]
[354500892,1740541838356,-500.0,0.0003863,2]
[354500893,1740541838365,-500.0,0.0003863,2]
[354500894,1740541838375,-655.21,0.0003863,2]
[354500895,1740541838384,-500.0,0.0003863,2]
[354500896,1740541838393,-500.0,0.0003863,2]
[354500897,1740541838402,-500.0,0.0003863,2]
[354500898,1740541838411,-500.0,0.0003863,2]
[354500899,1740541838420,-500.0,0.0003863,2]
[354500900,1740541838431,-500.0,0.0003863,2]
[354500901,1740541838440,-500.0,0.0003863,2]
[354500902,1740541838449,-1093.29,0.0003863,2]
[354500903,1740541838459,-500.0,0.0003863,2]
[354500904,1740541838469,-1270.97,0.0003863,2]
[354500905,1740541838478,-639.54,0.0003863,2]
[354500906,1740541838487,-500.0,0.0003863,2]
[354500907,1740541838497,-1985.84,0.0003863,2]
[354500908,1740541838506,-500.0,0.0003863,2]
[354500909,1740541838515,-553.98,0.0003863,2]
[354500910,1740541838524,-500.0,0.0003863,2]
[354500911,1740541838533,-500.0,0.0003863,2]
[354500912,1740541838543,-500.0,0.0003863,2]
[354500913,1740541838552,-151.0,0.0003863,14]
[354500914,1740541838561,-500.0,0.0003863,2]
[354500915,1740541838570,-1474.78,0.0003863,2]
[354500916,1740541838579,-500.0,0.0003863,2]
[354500917,1740541838588,-500.0,0.0003863,2]
[354500918,1740541838598,-2148.66,0.0003863,2]
[354500919,1740541838607,-500.0,0.0003863,2]
[354500920,1740541838616,-500.0,0.0003863,2]
[354500921,1740541838625,-502.85070751,0.0003863,2]
[354500922,1740541838635,-500.0,0.0003863,2]
[354500923,1740541838645,-1062.96,0.0003863,2]
[354500924,1740541838655,-151.0,0.0003863,14]
[354500925,1740541838664,-500.0,0.0003863,2]
[354500926,1740541838673,-500.0,0.0003863,2]
[354500927,1740541838683,-502.49890242,0.0003863,2]
[354500928,1740541838692,-500.0,0.0003863,2]
[354500929,1740541838701,-1566.7,0.0003863,2]
[354500930,1740541838711,-2271.73,0.0003863,2]
[354500931,1740541838723,-1000.0,0.0003863,30]
[354500932,1740541838733,-910.04,0.0003863,2]
[354500933,1740541838742,-808.12,0.0003863,2]
[354500934,1740541838751,-660.19,0.0003863,2]
[354500935,1740541838761,-1062.27,0.0003863,2]
[354500936,1740541838771,-761.72,0.0003863,2]
[354500937,1740541838780,-500.0,0.0003863,2]
[354500938,1740541838789,-500.0,0.0003863,2]
[354500939,1740541838798,-587.82,0.0003863,2]
[354500940,1740541838808,-2348.87,0.0003863,2]
[354500941,1740541838817,-500.0,0.0003863,2]
[354500942,1740541838826,-1082.88,0.0003863,2]
[354500943,1740541838837,-1083.65,0.0003863,2]
[354500944,1740541838846,-500.0,0.0003863,2]
[354500945,1740541838855,-500.0,0.0003863,2]
[354500946,1740541838864,-500.0,0.0003863,2]
[354500947,1740541838873,-1180.85,0.0003863,2]
[354500948,1740541838883,-588.21,0.0003863,2]
[354500949,1740541838892,-374.20775426,0.0003863,2]
[354500950,1740541838902,-500.0,0.0003863,2]
[354500951,1740541838911,-500.0,0.0003863,2]
[354500952,1740541838920,-500.0,0.0003863,2]
[354500953,1740541838929,-151.0,0.0003863,14]
[354500954,1740541838939,-151.0,0.0003863,14]
[354500955,1740541838948,-151.0,0.0003863,14]
[354500956,1740541838959,-249.382602,0.0003863,14]
[354500957,1740541838968,-500.0,0.0003863,2]
[354500958,1740541838978,-151.0,0.0003863,14]
[354500959,1740541838987,-905.71,0.0003863,2]
[354500960,1740541838997,-500.0,0.0003863,2]
[354500961,1740541839006,-500.0,0.0003863,2]
[354500962,1740541839015,-522.98,0.0003863,2]
[354500963,1740541839025,-500.0,0.0003863,2]
[354500964,1740541839034,-916.92,0.0003863,120]
[354500965,1740541839043,-500.0,0.0003863,2]
[354500966,1740541839053,-500.0,0.0003863,2]
[354500967,1740541839063,-594.42,0.0003863,2]
[354500968,1740541839072,-500.0,0.0003863,2]
[354500969,1740541839082,-940.15,0.0003863,2]
[354500970,1740541839091,-500.0,0.0003863,2]
[354500971,1740541839100,-1845.61,0.0003863,2]
[354500972,1740541839109,-850.18,0.0003863,2]
[354500973,1740541839118,-500.0,0.0003863,2]
[354500974,1740541839127,-566.29,0.0003863,2]
[354500975,1740541839137,-1025.57,0.0003863,2]
[354500976,1740541839146,-634.95,0.0003863,2]
[354500977,1740541839155,-1528.03,0.0003863,2]
[354500978,1740541839164,-151.0,0.0003863,14]
[354500979,1740541839173,-151.0,0.0003863,14]
[354500980,1740541839182,-153.299938,0.0003863,14]
[354500981,1740541839191,-666.28,0.0003863,2]
[354500982,1740541839201,-1167.0,0.0003863,2]
[354500983,1740541839210,-500.0,0.0003863,2]
[354500984,1740541839219,-500.0,0.0003863,2]
[354500985,1740541839229,-1631.72,0.0003863,2]
[354500986,1740541839238,-525.46276765,0.0003863,2]
[354500987,1740541839247,-500.0,0.0003863,2]
[354500988,1740541839257,-500.0,0.0003863,2]
[354500989,1740541839267,-524.39,0.0003863,2]
[354500990,1740541839276,-500.0,0.0003863,2]
[354500991,1740541839285,-500.0,0.0003863,2]
[354500992,1740541839294,-500.0,0.0003863,2]
[354500993,1740541839303,-550.66,0.0003863,2]
[354500994,1740541839312,-500.0,0.0003863,2]
[354500995,1740541839321,-500.0,0.0003863,2]
[354500996,1740541839331,-500.0,0.0003863,2]
[354500997,1740541839340,-776.92,0.0003863,2]
[354500998,1740541839349,-540.59,0.0003863,2]
[354500999,1740541839358,-500.0,0.0003863,2]
[354501000,1740541839366,-500.0,0.0003863,2]
[354501001,1740541839376,-500.0,0.0003863,2]
[354501002,1740541839385,-500.0,0.0003863,2]
[354501003,1740541839395,-1099.25,0.0003863,2]
[354501004,1740541839404,-500.0,0.0003863,2]
[354501005,1740541839414,-500.0,0.0003863,2]
[354501006,1740541839423,-531.21,0.0003863,2]
[354501007,1740541839434,-500.0,0.0003863,2]
[354501008,1740541839445,-494.35905183,0.0003863,2]
[354501009,1740541839454,-500.0,0.0003863,2]
[354501010,1740541839463,-653.07,0.0003863,2]
[354501011,1740541839473,-500.0,0.0003863,2]
[354501012,1740541839482,-151.653595,0.0003863,14]
[354501013,1740541839491,-500.0,0.0003863,2]
[354501014,1740541839500,-500.0,0.0003863,2]
[354501015,1740541839509,-418.11728148,0.0003863,2]
[354501016,1740541839519,-500.0,0.0003863,2]
[354501017,1740541839527,-953.29,0.0003863,2]
[354501018,1740541839536,-675.52,0.0003863,2]
[354501019,1740541839546,-2325.51,0.0003863,2]
[354501020,1740541839555,-500.0,0.0003863,2]
[354501021,1740541839564,-500.0,0.0003863,2]
[354501022,1740541839573,-500.0,0.0003863,2]
[354501023,1740541839582,-1778.36,0.0003863,2]
[354501024,1740541839591,-500.0,0.0003863,2]
[354501025,1740541839600,-500.0,0.0003863,2]
[354501026,1740541839610,-522.28774677,0.0003863,2]
[354501027,1740541839619,-500.0,0.0003863,2]
[354501028,1740541839629,-500.0,0.0003863,2]
[354501029,1740541839638,-2484.09,0.0003863,2]
[354501030,1740541839647,-1225.49,0.0003863,2]
[354501031,1740541839657,-151.0,0.0003863,14]
[354501032,1740541839667,-211.225084,0.0003863,14]
[354501033,1740541839676,-7095.42620969,0.0003863,2]
[354501035,1740541840277,-362.16169028,0.00038355,2]
[354501036,1740541840287,-500.0,0.00038355,15]
[354501037,1740541840296,-500.0,0.00038355,15]
[354501038,1740541840306,-500.0,0.00038355,15]
[354501039,1740541840316,-500.0,0.00038355,15]
[354501040,1740541840326,-500.0,0.00038355,15]
[354501042,1740541840335,-500.0,0.00038355,15]
[354501044,1740541840345,-500.0,0.00038355,15]
[354501046,1740541840355,-500.0,0.00038355,15]
[354501048,1740541840364,-500.0,0.00038355,15]
[354501050,1740541840374,-482.03707061,0.00038355,15]
[354501052,1740541840383,-500.0,0.00038356,2]
[354501054,1740541840392,-500.0,0.00038356,2]
[354501056,1740541840401,-500.0,0.00038356,2]
[354501058,1740541840411,-515.88777817,0.0003863,2]
[354501060,1740541840420,-998.16,0.0003863,2]
[354501063,1740541840430,-2602.84,0.0003863,2]
[354501065,1740541840439,-500.0,0.0003863,2]
[354501066,1740541840449,-151.0,0.0003863,14]
[354501069,1740541840458,-151.0,0.0003863,14]
[354501071,1740541840467,-552.17090517,0.0003863,2]
[354501073,1740541840478,-500.0,0.0003863,2]
[354501075,1740541840487,-565.19,0.0003863,2]
[354501078,1740541840496,-500.0,0.0003863,2]
[354501080,1740541840506,-799.45,0.0003863,2]
[354501082,1740541840516,-151.0,0.0003863,14]
[354501084,1740541840526,-151.0,0.0003863,14]
[354501086,1740541840536,-500.0,0.0003863,2]
[354501088,1740541840545,-500.0,0.0003863,2]
[354501090,1740541840555,-2764.65,0.0003863,2]
[354501092,1740541840565,-500.0,0.0003863,2]
[354501094,1740541840574,-500.0,0.0003863,2]
[354501096,1740541840584,-1783.36,0.0003863,2]
[354501098,1740541840593,-6750.26,0.0003863,2]
[354501099,1740541840603,-500.0,0.0003863,2]
[354501100,1740541840613,-500.0,0.0003863,2]
[354501101,1740541840622,-5267.08,0.0003863,2]
[354501103,1740541840632,-1830.68,0.0003863,2]
[354501104,1740541840641,-213.296649,0.0003863,14]
[354501105,1740541840651,-213.296649,0.0003863,14]
[354501106,1740541840661,-500.0,0.0003863,2]
[354501107,1740541840670,-500.0,0.0003863,2]
[354501108,1740541840680,-213.296649,0.0003863,14]
[354501109,1740541840690,-213.296649,0.0003863,14]
[354501110,1740541840700,-2033.02,0.0003863,2]
[354501111,1740541840710,-3800.0,0.0003863,120]
[354501112,1740541840724,-500.0,0.0003863,2]
[354501113,1740541840734,-500.0,0.0003863,2]
[354501114,1740541840744,-8525.94,0.0003863,2]
[354501115,1740541840753,-272.00544741,0.0003863,2]
[354501116,1740541840768,-227.99455259,0.0003863,2]
[354501117,1740541840778,-10356.66212034,0.0003863,2]
[354501118,1740541840790,-1252.77339727,0.0003863,2]
[354501130,1740541846484,-500.0,0.00038356,2]
[354501132,1740541846494,-926.06,0.00038356,2]
[354501134,1740541846504,-511.01386092,0.00038356,2]
[354501136,1740541846514,-500.0,0.00038356,2]
[354501138,1740541846524,-500.0,0.00038356,2]
[354501140,1740541846534,-500.0,0.00038356,2]
[354501142,1740541846545,-894.83,0.00038356,2]
[354501144,1740541846554,-500.0,0.00038356,2]
[354501146,1740541846564,-753.66,0.00038356,2]
[354501149,1740541846575,-156044.76448239,0.0003863,2]
[354501151,1740541846585,-2404.5,0.0003863,2]
[354501153,1740541846596,-500.0,0.0003863,2]
[354501155,1740541846605,-500.0,0.0003863,2]
[354501157,1740541846614,-986.53,0.0003863,2]
[354501159,1740541846624,-18440.98,0.0003863,2]
[354501161,1740541846633,-527.39,0.0003863,2]
[354501163,1740541846643,-626.84,0.0003863,2]
[354501165,1740541846653,-500.0,0.0003863,2]
[354501167,1740541846663,-2187.34,0.0003863,2]
[354501169,1740541846673,-2420.23,0.0003863,2]
[354501171,1740541846682,-3527.91,0.0003863,2]
[354501186,1740541846905,-500.0,0.0003863,2]
[354501187,1740541846916,-500.0,0.0003863,2]
[354501188,1740541846926,-635.5,0.0003863,2]
[354501189,1740541846936,-1252.18,0.0003863,2]
[354501190,1740541846945,-500.0,0.0003863,2]
[354501191,1740541846955,-1909.8,0.0003863,2]
[354501192,1740541846964,-500.0,0.0003863,2]
[354501193,1740541846974,-500.0,0.0003863,2]